fUSD/lending_fUSD_20250607
["ID","MTS","AMOUNT","RATE_DAILY","PERIOD"]
[364913705,1749297664944,-1000.0,0.000187,2]
[364913706,1749297664969,-158.56807054,0.000187,2]
[364913707,1749297664995,-500.0,0.000187,2]
[364913708,1749297665020,-500.0,0.000187,2]
[364913709,1749297665047,-251.17701298,0.000187,2]
[364913710,1749297665071,-500.0,0.000187,2]
[364913711,1749297665096,-500.0,0.000187,2]
[364913712,1749297665119,-500.0,0.000187,2]
[364913713,1749297665144,-500.0,0.000187,2]
[364913714,1749297665168,-500.0,0.000187,2]
[364913715,1749297665192,-235.43239541,0.000187,2]
[364913716,1749297665218,-618.13802409,0.000187,2]
[364913717,1749297665248,-500.0,0.000187,2]
[364913718,1749297665273,-500.0,0.000187,2]
[364913719,1749297665295,-500.0,0.000187,2]
[364913720,1749297665320,-163.64994877,0.000187,2]
[364913721,1749297665343,-500.0,0.000187,2]
[364913722,1749297665367,-500.0,0.000187,2]
[364913723,1749297665390,-500.0,0.000187,2]
[364913724,1749297665414,-500.0,0.000187,2]
[364913725,1749297665438,-500.0,0.000187,2]
[364913726,1749297665463,-500.0,0.000187,2]
[364913727,1749297665489,-621.42166966,0.000187,2]
[364913728,1749297665512,-36918.87485661,0.00018701,2]
[364913729,1749297665535,-54829.7152,0.00018701,2]
[364913730,1749297665558,-2500.0,0.00018701,2]
[364913731,1749297665581,-403.13108284,0.00018706,2]
[364913732,1749297665605,-1000.0,0.00018708,2]
[364913733,1749297665628,-162.43,0.00018721,2]
[364913734,1749297665651,-5000.0,0.00018721,2]
[364913735,1749297665674,-770.19893928,0.00018723,2]
[364913736,1749297665698,-770.19893928,0.00018746,2]
[364913737,1749297665722,-770.19893928,0.00018769,2]
[364913738,1749297665745,-1013.99,0.0001879,2]
[364913739,1749297665769,-1013.99,0.0001879,2]
[364913740,1749297665799,-1013.99,0.0001879,2]
[364913741,1749297665823,-1013.99,0.0001879,2]
[364913742,1749297665847,-1013.99,0.0001879,2]
[364913743,1749297665871,-375.75,0.0001879,3]
[364913744,1749297665896,-770.19893928,0.00018792,2]
[364913745,1749297665926,-2181.6990877,0.000188,2]
[364913746,1749297665951,-30532.711197,0.000188,2]
[364913747,1749297665976,-420246.3347762,0.000188,2]
[364913748,1749297665998,-10559.3896082,0.000188,2]
[364913749,1749297666023,-155.154,0.00018802,2]
[364913750,1749297666049,-212.47020892,0.00018806,2]
[364913751,1749297666073,-398.75732088,0.00018806,2]
[364913752,1749297666097,-500.0,0.00018806,2]
[364913753,1749297666122,-246.13790775,0.00018806,2]
[364913754,1749297666145,-406.20955938,0.00018806,2]
[364913755,1749297666170,-184.34669156,0.00018806,2]
[364913756,1749297666195,-1000.0,0.00018807,2]
[364913757,1749297666219,-151.0,0.00018808,2]
[364913758,1749297666247,-354.436695,0.00018808,2]
[364913759,1749297666272,-354.436695,0.00018808,2]
[364913760,1749297666301,-151.0,0.00018808,2]
[364913761,1749297666325,-151.0,0.00018808,2]
[364913762,1749297666350,-151.0,0.00018808,2]
[364913763,1749297666375,-402.907868,0.00018808,2]
[364913764,1749297666400,-402.907868,0.00018808,2]
[364913765,1749297666422,-151.0,0.00018808,2]
[364913766,1749297666447,-151.0,0.00018808,2]
[364913767,1749297666471,-151.0,0.00018808,2]
[364913768,1749297666496,-151.0,0.00018808,2]
[364913769,1749297666519,-151.0,0.00018808,2]
[364913770,1749297666547,-151.0,0.00018808,2]
[364913771,1749297666569,-166.008992,0.00018808,2]
[364913772,1749297666595,-1642.080816,0.00018808,2]
[364913773,1749297666620,-1642.080816,0.00018808,2]
[364913774,1749297666643,-276.515978,0.00018808,2]
[364913775,1749297666667,-230.33985,0.00018808,2]
[364913776,1749297666692,-276.515978,0.00018808,2]
[364913777,1749297666716,-151.0,0.00018808,2]
[364913778,1749297666739,-151.0,0.00018808,2]
[364913779,1749297666763,-855.267624,0.00018808,2]
[364913780,1749297666792,-855.267624,0.00018808,2]
[364913781,1749297666815,-327.769811,0.00018808,2]
[364913782,1749297666838,-855.267624,0.00018808,2]
[364913783,1749297666879,-855.267624,0.00018808,2]
[364913784,1749297666904,-327.769811,0.00018808,2]
[364913785,1749297666928,-188.135992,0.00018808,2]
[364913786,1749297667169,-188.135992,0.00018808,2]
[364913787,1749297667193,-151.0,0.00018808,2]
[364913788,1749297667218,-529.0081,0.00018808,2]
[364913789,1749297667250,-188.135992,0.00018808,2]
[364913790,1749297667274,-188.135992,0.00018808,2]
[364913791,1749297667302,-151.0,0.00018808,2]
[364913792,1749297667327,-529.0081,0.00018808,2]
[364913793,1749297667351,-151.0,0.00018808,2]
[364913794,1749297667376,-151.0,0.00018808,2]
[364913795,1749297667405,-250.957019,0.00018808,2]
[364913796,1749297667431,-151.0,0.00018808,2]
[364913797,1749297667455,-151.0,0.00018808,2]
[364913798,1749297667480,-151.0,0.00018808,2]
[364913799,1749297667504,-824.094525,0.00018808,2]
[364913800,1749297667529,-824.094525,0.00018808,2]
[364913801,1749297667554,-824.094525,0.00018808,2]
[364913802,1749297667579,-824.094525,0.00018808,2]
[364913803,1749297667602,-151.0,0.00018808,2]
[364913804,1749297667627,-10000.0,0.00018808,2]
[364913805,1749297667652,-10000.0,0.00018808,2]
[364913806,1749297667676,-151.0,0.00018808,2]
[364913807,1749297667700,-10000.0,0.00018808,2]
[364913808,1749297667724,-10000.0,0.00018808,2]
[364913809,1749297667753,-10000.0,0.00018808,2]
[364913810,1749297667778,-10000.0,0.00018808,2]
[364913811,1749297667804,-151.0,0.00018808,2]
[364913812,1749297667828,-151.0,0.00018808,2]
[364913813,1749297667852,-151.0,0.00018808,2]
[364913814,1749297667877,-273.709969,0.00018808,2]
[364913815,1749297667901,-200.0,0.00018808,2]
[364913816,1749297667925,-181.881296,0.00018808,2]
[364913817,1749297667948,-181.881296,0.00018808,2]
[364913818,1749297667972,-181.881296,0.00018808,2]
[364913819,1749297667996,-181.881296,0.00018808,2]
[364913820,1749297668021,-464.541073,0.00018808,2]
[364913821,1749297668044,-464.541073,0.00018808,2]
[364913822,1749297668068,-464.541073,0.00018808,2]
[364913823,1749297668092,-464.541073,0.00018808,2]
[364913824,1749297668116,-153.65936,0.00018808,2]
[364913825,1749297668140,-1453.97682859,0.00018808,2]
[364913826,1749297668164,-1470.829381,0.00018808,2]
[364913827,1749297668188,-1470.829381,0.00018808,2]
[364913828,1749297668212,-1470.829381,0.00018808,2]
[364913829,1749297668246,-1470.829381,0.00018808,2]
[364913830,1749297668272,-151.0,0.00018808,2]
[364913831,1749297668296,-151.0,0.00018808,2]
[364913832,1749297668321,-151.0,0.00018808,2]
[364913833,1749297668346,-200.0,0.00018808,2]
[364913834,1749297668370,-151.0,0.00018808,2]
[364913835,1749297668394,-220.734717,0.00018808,2]
[364913836,1749297668418,-151.0,0.00018808,2]
[364913837,1749297668443,-179.340194,0.00018808,2]
[364913838,1749297668467,-1000.0,0.00018813,2]
[364913839,1749297668492,-770.19893928,0.00018816,2]
[364913840,1749297668515,-151.0,0.00018816,2]
[364913841,1749297668539,-961.409907,0.00018816,2]
[364913842,1749297668565,-961.409907,0.00018816,2]
[364913843,1749297668588,-162.693074,0.00018816,2]
[364913844,1749297668612,-162.693074,0.00018816,2]
[364913845,1749297668637,-572.91785,0.00018816,2]
[364913846,1749297668661,-572.91785,0.00018816,2]
[364913847,1749297668685,-150.0,0.00018816,2]
[364913848,1749297668709,-255.00578496,0.00018816,2]
[364913849,1749297668743,-500.0,0.00018816,2]
[364913850,1749297668774,-500.0,0.00018816,2]
[364913851,1749297668800,-500.0,0.00018816,2]
[364913852,1749297668824,-150.0,0.00018816,2]
[364913853,1749297668849,-203.64450596,0.00018816,2]
[364913854,1749297668873,-150.0,0.00018816,2]
[364913855,1749297668898,-500.0,0.00018816,2]
[364913856,1749297668923,-150.0,0.00018816,2]
[364913857,1749297668947,-150.0,0.00018816,2]
[364913858,1749297668972,-150.0,0.00018816,2]
[364913859,1749297668995,-500.0,0.00018816,2]
[364913860,1749297669020,-500.0,0.00018816,2]
[364913861,1749297669044,-1967.0,0.00018816,2]
[364913862,1749297669068,-150.0,0.00018816,2]
[364913863,1749297669093,-500.0,0.00018816,2]
[364913864,1749297669117,-150.0,0.00018816,2]
[364913865,1749297669140,-500.0,0.00018816,2]
[364913866,1749297669164,-2212.0,0.00018816,2]
[364913867,1749297669187,-500.0,0.00018816,2]
[364913868,1749297669210,-150.0,0.00018816,2]
[364913869,1749297669242,-500.0,0.00018816,2]
[364913870,1749297669266,-151.0,0.00018817,2]
[364913871,1749297669290,-151.0,0.00018817,2]
[364913872,1749297669317,-151.0,0.00018817,2]
[364913873,1749297669342,-151.0,0.00018817,2]
[364913874,1749297669368,-151.0,0.00018817,2]
[364913875,1749297669392,-151.0,0.00018817,2]
[364913876,1749297669416,-151.0,0.00018817,2]
[364913877,1749297669441,-151.0,0.00018817,2]
[364913878,1749297669466,-151.0,0.00018817,2]
[364913879,1749297669490,-151.0,0.00018817,2]
[364913880,1749297669516,-151.0,0.00018817,2]
[364913881,1749297669543,-151.0,0.00018817,2]
[364913882,1749297669568,-152.193938,0.00018817,2]
[364913883,1749297669592,-364.623123,0.00018817,2]
[364913884,1749297669616,-364.623123,0.00018817,2]
[364913885,1749297669640,-364.623123,0.00018817,2]
[364913886,1749297669664,-364.623123,0.00018817,2]
[364913887,1749297669689,-155.562117,0.00018817,2]
[364913888,1749297669715,-155.562117,0.00018817,2]
[364913889,1749297669740,-155.562117,0.00018817,2]
[364913890,1749297669765,-155.562117,0.00018817,2]
[364913891,1749297669791,-171.882811,0.00018817,2]
[364913892,1749297669815,-171.882811,0.00018817,2]
[364913893,1749297669839,-171.882811,0.00018817,2]
[364913894,1749297669864,-171.882811,0.00018817,2]
[364913895,1749297669889,-961.409907,0.00018817,2]
[364913896,1749297669915,-961.409907,0.00018817,2]
[364913897,1749297669940,-162.693074,0.00018817,2]
[364913898,1749297669966,-162.693074,0.00018817,2]
[364913899,1749297669990,-572.91785,0.00018817,2]
[364913900,1749297670016,-572.91785,0.00018817,2]
[364913901,1749297670040,-151.0,0.00018817,2]
[364913902,1749297670066,-200.0,0.00018817,2]
[364913903,1749297670313,-151.0,0.00018817,2]
[364913904,1749297670338,-151.0,0.00018817,2]
[364913905,1749297670361,-151.0,0.00018817,2]
[364913906,1749297670385,-200.0,0.00018817,2]
[364913907,1749297670410,-21349.47118085,0.00018821,2]
[364913908,1749297670433,-151.0,0.00018821,2]
[364913909,1749297670458,-151.0,0.00018821,2]
[364913910,1749297670481,-151.0,0.00018821,2]
[364913911,1749297670506,-151.0,0.00018821,2]
[364913912,1749297670531,-151.0,0.00018821,2]
[364913913,1749297670556,-151.0,0.00018821,2]
[364913914,1749297670578,-151.0,0.00018821,2]
[364913915,1749297670602,-186.578122,0.00018821,2]
[364913916,1749297670626,-186.578122,0.00018821,2]
[364913917,1749297670651,-225.218056,0.00018821,2]
[364913918,1749297670675,-225.218056,0.00018821,2]
[364913919,1749297670700,-151.0,0.00018821,2]
[364913920,1749297670724,-194.093952,0.00018821,2]
[364913921,1749297670748,-151.0,0.00018821,2]
[364913922,1749297670779,-151.0,0.00018821,2]
[364913923,1749297670811,-961.409907,0.00018821,2]
[364913924,1749297670836,-961.409907,0.00018821,2]
[364913925,1749297670861,-162.693074,0.00018821,2]
[364913926,1749297670885,-162.693074,0.00018821,2]
[364913927,1749297670911,-572.91785,0.00018821,2]
[364913928,1749297670936,-572.91785,0.00018821,2]
[364913929,1749297670960,-151.0,0.00018821,2]
[364913930,1749297670985,-151.0,0.00018821,2]
[364913931,1749297671009,-151.0,0.00018821,2]
[364913932,1749297671034,-151.0,0.00018821,2]
[364913933,1749297671058,-151.0,0.00018821,2]
[364913934,1749297671086,-667.336566,0.00018821,2]
[364913935,1749297671109,-667.336566,0.00018821,2]
[364913936,1749297671134,-151.0,0.00018821,2]
[364913937,1749297671158,-151.0,0.00018821,2]
[364913938,1749297671182,-1047.039356,0.00018821,2]
[364913939,1749297671205,-151.0,0.00018821,2]
[364913940,1749297671232,-151.0,0.00018821,2]
[364913941,1749297671256,-151.0,0.00018821,2]
[364913942,1749297671280,-151.0,0.00018821,2]
[364913943,1749297671304,-151.0,0.00018821,2]
[364913944,1749297671327,-222.13349,0.00018821,2]
[364913945,1749297671350,-151.0,0.00018821,2]
[364913946,1749297671373,-222.13349,0.00018821,2]
[364913947,1749297671396,-354.436695,0.00018821,2]
[364913948,1749297671420,-354.436695,0.00018821,2]
[364913949,1749297671444,-151.0,0.00018821,2]
[364913950,1749297671467,-307.314938,0.00018821,2]
[364913951,1749297671491,-151.0,0.00018821,2]
[364913952,1749297671514,-151.0,0.00018821,2]
[364913953,1749297671540,-307.314938,0.00018821,2]
[364913954,1749297671563,-151.0,0.00018821,2]
[364913955,1749297671588,-151.0,0.00018821,2]
[364913956,1749297671611,-402.907868,0.00018821,2]
[364913957,1749297671636,-402.907868,0.00018821,2]
[364913958,1749297671659,-151.0,0.00018821,2]
[364913959,1749297671684,-151.0,0.00018821,2]
[364913960,1749297671709,-151.0,0.00018821,2]
[364913961,1749297671735,-151.0,0.00018821,2]
[364913962,1749297671759,-151.0,0.00018821,2]
[364913963,1749297671785,-151.0,0.00018821,2]
[364913964,1749297671811,-151.0,0.00018821,2]
[364913965,1749297671836,-1642.080816,0.00018821,2]
[364913966,1749297671860,-1642.080816,0.00018821,2]
[364913967,1749297671884,-276.515978,0.00018821,2]
[364913968,1749297671908,-276.515978,0.00018821,2]
[364913969,1749297671932,-151.0,0.00018821,2]
[364913970,1749297671955,-151.0,0.00018821,2]
[364913971,1749297671978,-855.267624,0.00018821,2]
[364913972,1749297672000,-327.769811,0.00018821,2]
[364913973,1749297672031,-855.267624,0.00018821,2]
[364913974,1749297672067,-327.769811,0.00018821,2]
[364913975,1749297672097,-188.135992,0.00018821,2]
[364913976,1749297672130,-151.0,0.00018821,2]
[364913977,1749297672166,-529.0081,0.00018821,2]
[364913978,1749297672196,-188.135992,0.00018821,2]
[364913979,1749297672227,-151.0,0.00018821,2]
[364913980,1749297672261,-529.0081,0.00018821,2]
[364913981,1749297672295,-159.081604,0.00018821,2]
[364913982,1749297672331,-151.0,0.00018821,2]
[364913983,1749297672360,-151.0,0.00018821,2]
[364913984,1749297672394,-824.094525,0.00018821,2]
[364913985,1749297672425,-824.094525,0.00018821,2]
[364913986,1749297672456,-151.0,0.00018821,2]
[364913987,1749297672487,-10000.0,0.00018821,2]
[364913988,1749297672519,-180.469387,0.00018821,2]
[364913989,1749297672552,-10000.0,0.00018821,2]
[364913990,1749297672578,-6970.527663,0.00018821,2]
[364913991,1749297672611,-151.0,0.00018821,2]
[364913992,1749297672643,-181.881296,0.00018821,2]
[364913993,1749297672673,-181.881296,0.00018821,2]
[364913994,1749297672702,-464.541073,0.00018821,2]
[364913995,1749297672731,-464.541073,0.00018821,2]
[364913996,1749297672762,-341.013717,0.00018821,2]
[364913997,1749297672792,-341.013717,0.00018821,2]
[364913998,1749297672820,-151.0,0.00018821,2]
[364913999,1749297672854,-151.0,0.00018821,2]
[364914000,1749297672884,-151.0,0.00018821,2]
[364914001,1749297672912,-151.0,0.00018821,2]
[364914002,1749297672943,-299.428056,0.00018821,2]
[364914003,1749297672972,-151.0,0.00018821,2]
[364914004,1749297673001,-151.0,0.00018821,2]
[364914005,1749297673029,-151.0,0.00018821,2]
[364914006,1749297673065,-1470.829381,0.00018821,2]
[364914007,1749297673094,-151.0,0.00018821,2]
[364914008,1749297673125,-1470.829381,0.00018821,2]
[364914009,1749297673154,-151.0,0.00018821,2]
[364914010,1749297673183,-151.0,0.00018821,2]
[364914011,1749297673211,-151.0,0.00018821,2]
[364914012,1749297673242,-151.0,0.00018821,2]
[364914013,1749297673271,-263.744879,0.00018821,2]
[364914014,1749297673303,-263.744879,0.00018821,2]
[364914015,1749297673332,-151.0,0.00018821,2]
[364914016,1749297673362,-179.340194,0.00018821,2]
[364914017,1749297673393,-2045.95118534,0.00018825,2]
[364914018,1749297673424,-737.66748924,0.00018829,2]
[364914019,1749297673454,-159.63510569,0.00018829,2]
[364914020,1749297673485,-150.99999999,0.0001883,2]
[364914021,1749297673514,-196.712187,0.0001883,2]
[364914022,1749297673544,-155.562117,0.0001883,2]
[364914023,1749297673574,-155.562117,0.0001883,2]
[364914024,1749297673603,-151.0,0.0001883,2]
[364914025,1749297673633,-151.0,0.0001883,2]
[364914026,1749297673662,-326.309248,0.0001883,2]
[364914027,1749297673691,-326.309248,0.0001883,2]
[364914028,1749297673722,-150.96,0.00018837,2]
[364914029,1749297673751,-770.19893928,0.00018839,2]
[364914030,1749297673783,-151.0,0.00018843,2]
[364914031,1749297673813,-151.0,0.00018843,2]
[364914032,1749297673845,-151.0,0.00018843,2]
[364914033,1749297673874,-151.0,0.00018843,2]
[364914034,1749297673903,-151.0,0.00018843,2]
[364914035,1749297673932,-276.515978,0.00018843,2]
[364914036,1749297673961,-276.515978,0.00018843,2]
[364914037,1749297673990,-855.267624,0.00018843,2]
[364914038,1749297674019,-327.769811,0.00018843,2]
[364914039,1749297674047,-855.267624,0.00018843,2]
[364914040,1749297674076,-327.769811,0.00018843,2]
[364914041,1749297674105,-188.135992,0.00018843,2]
[364914042,1749297674135,-151.0,0.00018843,2]
[364914043,1749297674163,-188.135992,0.00018843,2]
[364914044,1749297674191,-156.438505,0.00018843,2]
[364914045,1749297674218,-151.0,0.00018843,2]
[364914046,1749297674568,-151.0,0.00018843,2]
[364914047,1749297674593,-824.094525,0.00018843,2]
[364914048,1749297674616,-824.094525,0.00018843,2]
[364914049,1749297674640,-151.0,0.00018843,2]
[364914050,1749297674664,-10000.0,0.00018843,2]
[364914051,1749297674688,-10000.0,0.00018843,2]
[364914052,1749297674711,-151.0,0.00018843,2]
[364914053,1749297674735,-181.881296,0.00018843,2]
[364914054,1749297674759,-181.881296,0.00018843,2]
[364914055,1749297674785,-464.541073,0.00018843,2]
[364914056,1749297674808,-464.541073,0.00018843,2]
[364914057,1749297674833,-341.013717,0.00018843,2]
[364914058,1749297674857,-341.013717,0.00018843,2]
[364914059,1749297674882,-151.0,0.00018843,2]
[364914060,1749297674906,-151.0,0.00018843,2]
[364914061,1749297674929,-151.0,0.00018843,2]
[364914062,1749297674952,-151.0,0.00018843,2]
[364914063,1749297674977,-151.0,0.00018843,2]
[364914064,1749297675000,-204.107327,0.00018843,2]
[364914065,1749297675022,-151.0,0.00018843,2]
[364914066,1749297675046,-1470.829381,0.00018843,2]
[364914067,1749297675069,-151.0,0.00018843,2]
[364914068,1749297675092,-1470.829381,0.00018843,2]
[364914069,1749297675117,-151.0,0.00018843,2]
[364914070,1749297675140,-151.0,0.00018843,2]
[364914071,1749297675164,-151.0,0.00018843,2]
[364914072,1749297675186,-151.0,0.00018843,2]
[364914073,1749297675208,-263.744879,0.00018843,2]
[364914074,1749297675235,-263.744879,0.00018843,2]
[364914075,1749297675258,-151.0,0.00018843,2]
[364914076,1749297675281,-179.340194,0.00018843,2]
[364914077,1749297675308,-150.0,0.00018843,2]
[364914078,1749297675333,-500.0,0.00018843,2]
[364914079,1749297675358,-500.0,0.00018843,2]
[364914080,1749297675382,-500.0,0.00018843,2]
[364914081,1749297675406,-150.0,0.00018843,2]
[364914082,1749297675431,-150.0,0.00018843,2]
[364914083,1749297675454,-500.0,0.00018843,2]
[364914084,1749297675477,-150.0,0.00018843,2]
[364914085,1749297675501,-150.0,0.00018843,2]
[364914086,1749297675527,-252.05656481,0.00018843,2]
[364914087,1749297675550,-500.0,0.00018843,2]
[364914088,1749297675573,-505.46701861,0.00018843,2]
[364914089,1749297675596,-1967.0,0.00018843,2]
[364914090,1749297675623,-150.0,0.00018843,2]
[364914091,1749297675650,-500.0,0.00018843,2]
[364914092,1749297675673,-278.49168584,0.00018843,2]
[364914093,1749297675697,-500.0,0.00018843,2]
[364914094,1749297675720,-2212.0,0.00018843,2]
[364914095,1749297675744,-500.0,0.00018843,2]
[364914096,1749297675770,-500.0,0.00018843,2]
[364914097,1749297675794,-151.0,0.00018847,2]
[364914098,1749297675818,-151.0,0.00018847,2]
[364914099,1749297675843,-151.0,0.00018847,2]
[364914100,1749297675867,-183.691151,0.00018847,2]
[364914101,1749297675889,-151.0,0.00018847,2]
[364914102,1749297675913,-151.0,0.00018847,2]
[364914103,1749297675937,-151.0,0.00018847,2]
[364914104,1749297675962,-151.0,0.00018847,2]
[364914105,1749297675984,-151.0,0.00018847,2]
[364914106,1749297676011,-151.0,0.00018847,2]
[364914107,1749297676033,-151.0,0.00018847,2]
[364914108,1749297676057,-186.578122,0.00018847,2]
[364914109,1749297676080,-186.578122,0.00018847,2]
[364914110,1749297676105,-151.0,0.00018847,2]
[364914111,1749297676127,-151.0,0.00018847,2]
[364914112,1749297676153,-364.623123,0.00018847,2]
[364914113,1749297676176,-364.623123,0.00018847,2]
[364914114,1749297676200,-171.882811,0.00018847,2]
[364914115,1749297676224,-171.882811,0.00018847,2]
[364914116,1749297676250,-961.409907,0.00018847,2]
[364914117,1749297676273,-961.409907,0.00018847,2]
[364914118,1749297676297,-162.693074,0.00018847,2]
[364914119,1749297676321,-162.693074,0.00018847,2]
[364914120,1749297676345,-572.91785,0.00018847,2]
[364914121,1749297676369,-572.91785,0.00018847,2]
[364914122,1749297676395,-1047.039356,0.00018847,2]
[364914123,1749297676422,-153.017383,0.00018847,2]
[364914124,1749297676446,-151.0,0.00018847,2]
[364914125,1749297676473,-354.436695,0.00018847,2]
[364914126,1749297676498,-354.436695,0.00018847,2]
[364914127,1749297676522,-151.0,0.00018847,2]
[364914128,1749297676547,-402.907868,0.00018847,2]
[364914129,1749297676572,-402.907868,0.00018847,2]
[364914130,1749297676597,-151.0,0.00018847,2]
[364914131,1749297676620,-151.0,0.00018847,2]
[364914132,1749297676644,-151.0,0.00018847,2]
[364914133,1749297676668,-1642.080816,0.00018847,2]
[364914134,1749297676693,-1642.080816,0.00018847,2]
[364914135,1749297676717,-151.0,0.00018847,2]
[364914136,1749297676742,-151.0,0.00018847,2]
[364914137,1749297676766,-529.0081,0.00018847,2]
[364914138,1749297676796,-529.0081,0.00018847,2]
[364914139,1749297676827,-151.0,0.00018847,2]
[364914140,1749297676863,-151.0,0.00018847,2]
[364914141,1749297676889,-173.567389,0.00018847,2]
[364914142,1749297676913,-173.567389,0.00018847,2]
[364914143,1749297676937,-151.0,0.00018847,2]
[364914144,1749297676962,-1621.503584,0.00018847,2]
[364914145,1749297676987,-1621.503584,0.00018847,2]
[364914146,1749297677011,-151.0,0.00018847,2]
[364914147,1749297677034,-336.770364,0.00018847,2]
[364914148,1749297677062,-200.168376,0.00018847,2]
[364914149,1749297677086,-951.154587,0.00018847,2]
[364914150,1749297677110,-200.168376,0.00018847,2]
[364914151,1749297677133,-951.154587,0.00018847,2]
[364914152,1749297677156,-151.0,0.00018847,2]
[364914153,1749297677179,-151.508267,0.00018847,2]
[364914154,1749297677202,-151.0,0.00018847,2]
[364914155,1749297677432,-196.779148,0.00018847,2]
[364914156,1749297677459,-196.779148,0.00018847,2]
[364914157,1749297677482,-151.0,0.00018847,2]
[364914158,1749297677505,-151.0,0.00018847,2]
[364914159,1749297677529,-151.0,0.00018847,2]
[364914160,1749297677554,-151.0,0.00018848,2]
[364914161,1749297677577,-667.336566,0.00018848,2]
[364914162,1749297677600,-667.336566,0.00018848,2]
[364914163,1749297677624,-150.0,0.00018851,2]
[364914164,1749297677649,-151.0,0.0001886,2]
[364914165,1749297677673,-202.3884,0.0001886,2]
[364914166,1749297677696,-202.3884,0.0001886,2]
[364914167,1749297677720,-151.0,0.0001886,2]
[364914168,1749297677744,-151.0,0.0001886,2]
[364914169,1749297677768,-151.0,0.0001886,2]
[364914170,1749297677795,-151.0,0.0001886,2]
[364914171,1749297677819,-151.0,0.0001886,2]
[364914172,1749297677843,-151.0,0.0001886,2]
[364914173,1749297677867,-151.0,0.0001886,2]
[364914174,1749297677891,-151.0,0.0001886,2]
[364914175,1749297677915,-151.0,0.0001886,2]
[364914176,1749297677938,-314.743866,0.0001886,2]
[364914177,1749297677961,-314.743866,0.0001886,2]
[364914178,1749297677984,-151.0,0.0001886,2]
[364914179,1749297678007,-240.033009,0.0001886,2]
[364914180,1749297678030,-252.578975,0.0001886,2]
[364914181,1749297678055,-347.722307,0.0001886,2]
[364914182,1749297678079,-347.722307,0.0001886,2]
[364914183,1749297678102,-151.0,0.0001886,2]
[364914184,1749297678128,-693.530733,0.0001886,2]
[364914185,1749297678151,-693.530733,0.0001886,2]
[364914186,1749297678175,-151.0,0.0001886,2]
[364914187,1749297678199,-151.0,0.0001886,2]
[364914188,1749297678222,-151.0,0.0001886,2]
[364914189,1749297678249,-151.0,0.0001886,2]
[364914190,1749297678274,-770.19893928,0.00018862,2]
[364914191,1749297678297,-150.0,0.00018871,2]
[364914192,1749297678324,-500.0,0.00018871,2]
[364914193,1749297678348,-500.0,0.00018871,2]
[364914194,1749297678371,-500.0,0.00018871,2]
[364914195,1749297678395,-215.44350681,0.00018871,2]
[364914196,1749297678418,-201.37534164,0.00018871,2]
[364914197,1749297678442,-500.0,0.00018871,2]
[364914198,1749297678465,-150.0,0.00018871,2]
[364914199,1749297678488,-150.0,0.00018871,2]
[364914200,1749297678511,-500.0,0.00018871,2]
[364914201,1749297678535,-1967.0,0.00018871,2]
[364914202,1749297678559,-201.21113638,0.00018871,2]
[364914203,1749297678583,-500.0,0.00018871,2]
[364914204,1749297678606,-500.0,0.00018871,2]